bitfinex/quotes_ETHUSD_20240820
["timestamp","ask_amount","ask_price","bid_price","bid_amount"]
[1724158047427,1.596,2652.4,2652.3,19.75]
[1724158049189,3.76983,2652.7,2652.3,19.75]
[1724158049391,0.59113338,2652.8,2652.4,2.4859]
[1724158049696,1.596,2652.8,2652.5,3.76993]
[1724158052440,1.596,2652.6,2652.5,3.76993]
[1724158053339,1.596,2652.6,2652.5,6.747534]
[1724158058855,3.76947,2652.9,2652.5,6.747534]
[1724158058856,1.596,2652.8,2652.5,6.747534]
[1724158060234,1.596,2652.8,2652.5,3.76993]
[1724158060946,1.596,2652.8,2652.4,22.2359]
[1724158060947,1.596,2652.8,2652.4,26.00602]
[1724158061149,1.596,2652.6,2652.4,26.00602]
[1724158062831,3.76947,2652.9,2652.4,26.00602]
[1724158063062,1.596,2652.7,2652.4,26.00602]
[1724158063268,1.596,2652.7,2652.5,2.977623]
[1724158064981,1.596,2652.7,2652.4,26.00602]
[1724158066976,1.596,2652.5,2652.4,19.75]
[1724158067135,7.69972,2652.5,2652.4,19.75]
[1724158068473,5.36602,2652.5,2652.4,19.75]
[1724158069773,3.77002,2652.5,2652.4,19.75]
[1724158069940,5.36602,2652.5,2652.4,19.75]
[1724158070767,5.36602,2652.5,2652.1,19.75]
[1724158070984,1.596,2652.3,2652.1,19.75]
[1724158071169,1.596,2652.3,2652.1,21.90950386]
[1724158074750,1.596,2652.3,2652.1,25.68009386]
[1724158075987,3.76961,2652.8,2652.3,3.77028]
[1724158076148,6.03271,2652.9,2652.3,3.77028]
[1724158076149,1.596,2652.7,2652.5,3.77002]
[1724158076530,1.596,2652.7,2652.5,4.524045]
[1724158078912,1.596,2652.7,2652.5,0.754025]
[1724158080425,1.596,2652.7,2652.4,19.75]
[1724158080730,1.596,2652.5,2652.4,19.75]
[1724158082033,9.13604,2652.5,2652.4,19.75]
[1724158082220,11.49614,2652.5,2652.4,19.75]
[1724158082600,3.77035,2652.3,2652.0,19.75]
[1724158082814,1.596,2652.1,2652.0,19.75]
[1724158084295,1.596,2652.3,2652.0,26.103317]
[1724158084486,1.596,2652.3,2652.1,3.77051]
[1724158087135,1.596,2652.3,2652.1,7.54102]
[1724158087293,1.596,2652.3,2652.2,6.13945]
[1724158087492,1.596,2652.3,2652.2,5.5932547]
[1724158087759,1.596,2652.5,2652.2,5.5932547]
[1724158088032,1.596,2652.6,2652.2,5.5932547]
[1724158088194,2.319,2652.8,2652.0,19.75]
[1724158088195,1.596,2652.4,2652.0,19.75]
[1724158088621,1.596,2652.4,2652.1,19.75]
[1724158090944,1.596,2652.2,2652.1,19.75]
[1724158094717,5.36645,2652.2,2652.1,19.75]
[1724158102148,5.36645,2652.2,2651.8,19.75]
[1724158102361,1.596,2651.9,2651.8,19.75]
[1724158103089,5.36688,2651.9,2651.8,19.75]
[1724158103584,9.13776,2651.9,2651.8,19.75]
[1724158103783,13.249126,2651.9,2651.8,19.75]
[1724158104837,12.08766,2651.9,2651.8,19.75]
[1724158107778,12.08766,2651.9,2651.8,19.6176]
[1724158109385,3.7713,2651.7,2651.5,19.6176]
[1724158109544,5.3673,2651.6,2651.5,19.6176]
[1724158111180,1.596,2651.6,2651.5,19.6176]
[1724158115909,5.3673,2651.6,2651.5,19.6176]
[1724158118307,9.1386,2651.6,2651.5,19.6176]
[1724158118614,7.54318,2651.4,2651.3,19.6176]
[1724158118814,7.54318,2651.4,2650.6,11.08264]
[1724158118815,3.7722,2651.0,2650.7,22.0063]
[1724158119015,3.7723,2650.9,2650.8,19.6176]
[1724158119178,5.3683,2650.9,2650.8,19.6176]
[1724158122183,9.1406,2650.9,2650.8,19.6176]
[1724158122546,5.3683,2650.9,2650.8,19.6176]
[1724158133209,10.054656,2650.9,2650.8,19.6176]
[1724158133405,12.0393,2650.9,2650.8,19.6176]
[1724158133611,3.77287,2650.5,2650.4,19.6176]
[1724158133808,5.36887,2650.5,2650.4,19.6176]
[1724158139761,1.596,2650.5,2650.4,19.6176]
[1724158139966,3.77262,2650.7,2650.4,19.6176]
[1724158139967,3.77278,2650.6,2650.4,24.07166]
[1724158141259,3.77278,2650.6,2650.4,22.1099]
[1724158141754,5.36848,2650.8,2650.4,22.1099]
[1724158142121,1.596,2650.8,2650.4,25.88284]
[1724158142434,1.596,2650.8,2650.4,25.88281]
[1724158142624,1.596,2650.8,2650.5,2.588281]
[1724158145136,1.596,2650.8,2650.6,19.6176]
[1724158147074,5.36851,2650.8,2650.6,19.6176]
[1724158151024,5.36851,2650.8,2650.7,19.6176]
[1724158153459,12.03516,2650.8,2650.7,19.6176]
[1724158153659,13.238676,2650.8,2650.7,19.6176]
[1724158164255,17.011226,2650.8,2650.7,19.6176]
[1724158164483,17.60278525,2650.8,2650.7,19.6176]
[1724158166774,16.461226,2650.8,2650.7,19.6176]
[1724158166980,17.011226,2650.8,2650.7,19.6176]
[1724158170265,16.461226,2650.8,2650.7,19.6176]
[1724158170520,17.011226,2650.8,2650.7,19.6176]
[1724158171023,17.011226,2650.8,2650.3,19.6176]
[1724158171024,3.77301,2650.4,2650.3,19.6176]
[1724158171168,5.36915,2650.3,2650.2,19.6176]
[1724158172521,5.91915,2650.3,2650.2,19.6176]
[1724158177311,5.91915,2650.3,2649.9,22.0008]
[1724158177312,3.7735,2650.1,2649.9,22.0008]
[1724158177530,1.596,2650.0,2649.9,22.0008]
[1724158181572,1.596,2650.0,2649.9,19.6176]
[1724158186059,5.36958,2650.0,2649.9,19.6176]
[1724158198408,1.596,2650.0,2649.9,19.6176]
[1724158198568,0.55,2650.3,2650.0,2.4173]
[1724158198763,3.59155078,2650.9,2650.1,19.6176]
[1724158198967,5.66740261,2651.0,2650.4,6.19022]
[1724158198968,3.77223,2651.0,2650.4,6.19022]
[1724158199186,3.77223,2651.0,2650.5,23.39046]
[1724158199187,1.596,2650.7,2650.5,23.39046]
[1724158199397,1.596,2650.7,2650.5,19.6176]
[1724158204372,5.3686,2650.7,2650.5,19.6176]
[1724158204575,5.3686,2650.7,2650.6,19.6176]
[1724158205071,1.596,2650.7,2650.6,19.6176]
[1724158206940,3.77244,2650.8,2650.6,19.6176]
[1724158207146,1.596,2650.7,2650.6,19.6176]
[1724158211038,5.36858,2650.7,2650.6,19.6176]
[1724158211580,3.77258,2650.7,2650.6,19.6176]
[1724158211880,5.36858,2650.7,2650.6,19.6176]
[1724158212285,1.596,2650.7,2650.6,19.6176]
[1724158215952,5.36858,2650.7,2650.6,19.6176]
[1724158216457,1.596,2650.7,2650.6,19.6176]
[1724158216838,9.26709,2651.2,2650.7,2.4997]
[1724158216839,3.77217,2651.0,2650.7,2.4997]
[1724158217160,3.77217,2651.0,2650.6,19.6176]
[1724158217161,1.596,2650.8,2650.6,19.6176]
[1724158220502,1.596,2650.7,2650.6,19.6176]
[1724158224866,5.36858,2650.7,2650.6,19.6176]
[1724158231621,9.14116,2650.7,2650.6,19.6176]
[1724158231824,14.626916,2650.7,2650.6,19.6176]
[1724158232116,20.117516,2650.7,2650.6,19.6176]
[1724158232268,20.19279296,2650.7,2650.6,19.6176]
[1724158234863,16.42021296,2650.7,2650.6,19.6176]
[1724158235069,12.76643696,2650.7,2650.6,19.6176]
[1724158235280,8.44385696,2650.7,2650.6,19.6176]
[1724158235483,8.44385696,2650.7,2650.6,21.9993]
[1724158236404,8.44385696,2650.7,2650.6,19.6176]
[1724158236569,12.21643696,2650.7,2650.6,19.6176]
[1724158240985,13.68321066,2650.7,2650.6,19.6176]
[1724158241327,14.23321066,2650.7,2650.6,19.6176]
[1724158242197,18.00579066,2650.7,2650.6,19.6176]
[1724158242919,20.29799066,2650.7,2650.6,19.6176]
[1724158245209,12.76643696,2650.7,2650.6,19.6176]
[1724158245598,12.21643696,2650.7,2650.6,19.6176]
[1724158246182,12.21643696,2650.7,2650.6,19.5289]
[1724158246498,12.21643696,2650.7,2650.6,19.3924]
[1724158246701,12.21643696,2650.7,2650.6,19.3264]
[1724158246901,12.76643696,2650.7,2650.6,19.3264]
[1724158249242,12.76643696,2650.7,2650.6,19.2817]
[1724158249526,12.76643696,2650.7,2650.6,19.0738]
[1724158250134,12.76643696,2650.7,2650.6,18.8638]
[1724158250433,12.76643696,2650.7,2650.6,18.6894]
[1724158250787,12.76643696,2650.7,2650.6,18.5902]
[1724158251827,12.76643696,2650.7,2650.6,18.426]
[1724158254845,16.89921866,2650.7,2650.6,18.426]
[1724158255048,20.67179866,2650.7,2650.6,18.426]
[1724158255248,3.77358,2650.0,2649.9,18.426]
[1724158255764,4.39536209,2650.0,2649.9,18.426]
[1724158256769,8.16894209,2650.0,2649.9,18.426]
[1724158257080,4.39536209,2650.0,2649.9,18.426]
[1724158257637,8.16894209,2650.0,2649.9,18.426]
[1724158260176,4.39536209,2650.0,2649.9,18.426]
[1724158260683,3.77429,2649.5,2649.4,18.426]
[1724158260836,9.14458,2649.5,2649.4,18.426]
[1724158261035,9.76621608,2649.5,2649.4,18.426]
[1724158262050,5.99192608,2649.5,2649.4,18.426]
[1724158263373,9.76621608,2649.5,2649.4,18.426]
[1724158263677,5.99192608,2649.5,2649.4,18.426]
[1724158263855,9.76621608,2649.5,2649.4,18.426]
[1724158264173,3.77457,2649.4,2649.2,18.426]
[1724158264371,3.77457,2649.4,2649.3,18.426]
[1724158264583,5.92057,2649.4,2649.3,18.426]
[1724158264784,9.69514,2649.4,2649.3,18.426]
[1724158265187,4.32457,2649.4,2649.3,18.426]
[1724158265566,5.92057,2649.4,2649.3,18.426]
[1724158266351,5.92057,2649.4,2649.3,20.5011]
[1724158270692,2.146,2649.4,2649.3,20.5011]
[1724158271003,1.596,2649.7,2649.4,2.3433]
[1724158271304,1.596,2649.9,2649.5,9.87964]
[1724158271599,0.06871567,2649.8,2649.5,3.77422]
[1724158271895,0.06871567,2649.8,2649.6,2.3312]
[1724158272265,1.596,2649.9,2649.6,2.3312]
[1724158272455,5.36973,2649.9,2649.6,3.1844979]
[1724158272794,1.596,2649.7,2649.6,3.1844979]
[1724158272952,1.596,2649.7,2649.6,2.3312]
[1724158273152,5.37004,2649.7,2649.3,20.8296]
[1724158273362,1.596,2649.5,2649.3,20.8296]
[1724158273567,0.06832764,2649.4,2649.3,20.8296]
[1724158273768,0.61832764,2649.4,2649.3,20.8296]
[1724158274494,0.61832764,2649.4,2649.3,23.667485]
[1724158278093,0.61832764,2649.4,2649.3,27.442065]
[1724158281991,0.61832764,2649.4,2649.3,31.216645]
[1724158284809,0.61832764,2649.4,2649.3,27.442065]
[1724158288687,0.55,2649.4,2649.3,27.442065]
[1724158288887,0.55,2649.6,2649.4,3.7744]
[1724158289929,0.06832901,2649.5,2649.4,3.7744]
[1724158290086,0.61832901,2649.5,2649.4,3.7744]
[1724158291248,0.61832901,2649.5,2649.4,6.8960505]
[1724158292653,0.06832901,2649.5,2649.4,10.6704805]
[1724158292806,3.77338,2650.2,2649.8,6.06323]
[1724158293007,0.06648693,2650.1,2649.8,6.06318]
[1724158293207,1.596,2650.1,2649.9,3.77366]
[1724158293458,0.59166377,2650.5,2650.0,6.11737]
[1724158293748,3.77255,2650.8,2650.2,3.77322]
[1724158293958,1.596,2650.6,2650.3,3.77314]
[1724158294975,1.596,2650.6,2650.3,6.12664]
[1724158295766,0.55,2650.5,2650.3,6.12664]
[1724158299671,0.55,2650.5,2650.3,6.12658]
[1724158299972,6.72614239,2651.2,2650.7,3.77256]
[1724158300186,6.72614239,2651.2,2650.8,2.3108]
[1724158300187,1.596,2651.1,2650.8,2.3108]
[1724158300475,1.596,2651.1,2650.8,6.08312]
[1724158300771,0.59145571,2651.6,2651.2,6.12835]
[1724158300954,1.596,2651.7,2651.3,3.7717]
[1724158301274,1.596,2651.5,2651.3,3.77164]
[1724158301472,2.3222,2651.9,2651.4,3.77159]
[1724158301473,1.596,2651.7,2651.4,3.77159]
[1724158301672,1.596,2651.7,2651.3,3.77164]
[1724158301875,1.596,2651.7,2651.3,3.84706677]
[1724158302084,3.77081,2652.0,2651.3,4.76919168]
[1724158302286,1.596,2651.9,2651.7,3.77115]
[1724158302470,3.77052,2652.2,2651.7,6.12765]
[1724158302650,0.377052,2652.1,2651.7,6.12765]
[1724158303339,3.77052,2652.2,2651.7,6.12765]
[1724158304246,9.86273,2652.4,2651.8,3.77102]
[1724158304453,3.77026,2652.4,2651.8,3.77102]
[1724158304889,0.06028649,2652.3,2651.8,3.77102]
[1724158305391,0.06028649,2652.3,2651.8,7.54195]
[1724158305591,0.06028649,2652.3,2651.8,3.77093]
[1724158305762,0.06028649,2652.3,2651.8,3.76483381]
[1724158306014,0.55,2652.2,2651.8,3.76483381]
[1724158306217,0.06201236,2652.1,2651.8,3.76483381]
[1724158306417,0.55,2652.0,2651.8,3.76483381]
[1724158306617,0.06186382,2651.9,2651.8,3.76483381]
[1724158306846,0.61186382,2651.9,2651.8,3.76483381]
[1724158307715,0.61186382,2651.9,2651.8,4.75408719]
[1724158308237,0.61186382,2651.9,2651.8,0.98925338]
[1724158308439,0.61186382,2651.9,2651.7,6.12763]
[1724158308651,0.55,2651.8,2651.7,6.12763]
[1724158308816,0.61195942,2651.8,2651.7,6.12763]
[1724158310724,0.61195942,2651.8,2651.7,3.77113]
[1724158313836,0.61195942,2651.8,2651.6,3.7713]
[1724158314540,0.61195942,2651.8,2651.7,18.426]
[1724158318983,5.19834736,2651.8,2651.7,18.426]
[1724158321092,1.42732736,2651.8,2651.7,18.426]
[1724158321247,0.61195942,2651.8,2651.7,18.426]
[1724158340965,0.61195942,2651.8,2651.7,22.19716]
[1724158341414,0.55,2651.8,2651.7,22.19716]
[1724158341712,0.06170411,2651.8,2651.7,18.426]
[1724158341867,0.55,2651.8,2651.7,18.426]
[1724158342068,0.61170411,2651.8,2651.7,18.426]
[1724158344123,7.54232,2651.7,2651.6,18.426]
[1724158344271,12.09672,2651.7,2651.6,18.426]
[1724158344470,3.77159,2651.4,2651.3,18.426]
[1724158344811,5.97976641,2651.4,2651.3,18.426]
[1724158348017,9.75135641,2651.4,2651.3,18.426]
[1724158348207,12.71863305,2651.4,2651.3,18.426]
[1724158348533,8.94704305,2651.4,2651.3,18.426]
[1724158350605,12.71863305,2651.4,2651.3,18.426]
[1724158351391,3.77201,2651.1,2651.0,18.426]
[1724158351594,5.37101,2651.1,2651.0,18.426]
[1724158351843,5.4287537,2651.1,2651.0,18.426]
[1724158352047,5.9787537,2651.1,2651.0,18.426]
[1724158353657,9.7507637,2651.1,2651.0,18.426]
[1724158357129,10.82727927,2651.1,2651.0,18.426]
[1724158357332,13.13237927,2651.1,2651.0,18.426]
[1724158360365,12.0558637,2651.1,2651.0,18.426]
[1724158362262,3.77233,2650.9,2650.6,18.426]
[1724158362473,0.60738398,2650.8,2650.6,18.426]
[1724158366860,0.60738398,2650.8,2650.7,18.426]
[1724158368790,0.60738398,2650.8,2650.7,22.87741626]
[1724158370083,0.60738398,2650.8,2650.7,26.64999626]
[1724158371364,0.60738398,2650.8,2650.7,24.63288]
[1724158375113,0.60738398,2650.8,2650.7,20.8603]
[1724158380420,0.60738398,2650.8,2650.7,18.426]
[1724158388241,12.14576398,2650.8,2650.7,18.426]
[1724158388462,3.77301,2650.4,2650.3,18.426]
[1724158388599,5.37201,2650.4,2650.3,18.426]
[1724158388813,5.97883341,2650.4,2650.3,18.426]
[1724158390319,2.20582341,2650.4,2650.3,18.426]
[1724158391925,5.97883341,2650.4,2650.3,18.426]
[1724158392323,4.37983341,2650.4,2650.3,18.426]
[1724158392518,5.97883341,2650.4,2650.3,18.426]
[1724158398193,5.92883341,2650.4,2650.3,18.426]
[1724158400021,9.70184341,2650.4,2650.3,18.426]
[1724158401489,5.92883341,2650.4,2650.3,18.426]
[1724158404436,4.32983341,2650.4,2650.3,18.426]
[1724158409815,4.32983341,2650.4,2650.3,18.42518275]
[1724158413622,6.70663341,2650.4,2650.3,18.42518275]
[1724158414624,4.32983341,2650.4,2650.3,18.42518275]
[1724158417870,4.14608844,2650.4,2650.3,18.42518275]
[1724158419227,7.91909844,2650.4,2650.3,18.42518275]
[1724158419570,11.87918628,2650.4,2650.3,18.42518275]
[1724158419782,14.87918628,2650.4,2650.3,18.42518275]
[1724158420776,18.65219628,2650.4,2650.3,18.42518275]
[1724158421331,14.87918628,2650.4,2650.3,18.42518275]
[1724158421781,18.65219628,2650.4,2650.3,18.42518275]
[1724158422182,14.87918628,2650.4,2650.3,18.42518275]
[1724158424912,18.65219628,2650.4,2650.3,18.42518275]
[1724158426679,13.32059844,2650.4,2650.3,18.42518275]
[1724158426958,10.91909844,2650.4,2650.3,18.42518275]
[1724158428160,13.37559844,2650.4,2650.3,18.42518275]
[1724158433510,10.91909844,2650.4,2650.3,18.42518275]
[1724158437313,10.90430296,2650.4,2650.3,18.42518275]
[1724158437831,14.67731296,2650.4,2650.3,18.42518275]
[1724158438003,16.54241426,2650.4,2650.3,18.42518275]
[1724158438196,18.85711426,2650.4,2650.3,18.42518275]
[1724158438841,22.63012426,2650.4,2650.3,18.42518275]
[1724158439000,23.22183234,2650.4,2650.3,18.42518275]
[1724158440233,19.44882234,2650.4,2650.3,18.42518275]
[1724158440993,23.22183234,2650.4,2650.3,18.42518275]
[1724158441332,7.54772,2649.8,2649.7,18.42518275]
[1724158441559,3.77415,2649.6,2649.5,18.42518275]
[1724158441850,5.41144569,2649.6,2649.5,18.42518275]
[1724158442046,5.96144569,2649.6,2649.5,18.42518275]
[1724158442345,5.96144569,2649.6,2649.5,20.51126103]
[1724158442648,5.92315,2649.6,2649.5,20.51126103]
[1724158442818,5.96142451,2649.6,2649.5,20.51126103]
[1724158445913,5.96142451,2649.6,2649.5,18.42518275]
[1724158446112,3.77429,2649.5,2649.4,2.4356]
[1724158446311,4.32429,2649.5,2649.4,2.4356]
[1724158446610,4.36240693,2649.5,2649.4,2.4356]
[1724158447010,8.13669693,2649.5,2649.4,2.4356]
[1724158447821,3.77459,2649.3,2649.0,0.1291162]
[1724158448068,3.77459,2649.3,2649.1,2.3153]
[1724158448069,2.149,2649.2,2649.1,2.3153]
[1724158448226,2.18719879,2649.2,2649.1,2.55974162]
[1724158453164,0.03819879,2649.2,2649.1,10.10946162]
[1724158453517,1.599,2649.6,2649.2,6.17869]
[1724158453716,1.599,2649.6,2649.2,7.20254778]
[1724158454969,0.03821053,2649.5,2649.2,7.20254778]
[1724158455137,0.58821053,2649.5,2649.2,7.20254778]
[1724158456684,1.599,2649.4,2649.2,3.42785778]
[1724158456981,0.55,2649.3,2649.2,3.42785778]
[1724158457186,0.58800771,2649.3,2649.2,3.42785778]
[1724158457345,0.58800771,2649.3,2649.2,21.85304053]
[1724158457746,0.55,2649.3,2649.2,21.85304053]
[1724158459386,0.55,2649.3,2649.2,19.44904053]
[1724158459597,0.55,2649.3,2649.2,18.42518275]
[1724158459748,0.58808371,2649.3,2649.2,18.42518275]
[1724158460097,4.32458,2649.3,2649.2,18.42518275]
[1724158460500,4.36266048,2649.3,2649.2,18.42518275]
[1724158463008,0.58808048,2649.3,2649.2,20.54862681]
[1724158463361,0.55,2649.3,2649.2,20.54862681]
[1724158463562,0.58807403,2649.3,2649.2,20.54862681]
[1724158463872,0.5878941,2649.3,2649.2,20.54862681]
[1724158464403,0.0378941,2649.3,2649.2,20.54862681]
[1724158464607,0.0378941,2649.3,2649.2,24.32334681]
[1724158464765,0.55,2649.5,2649.3,2.3341]
[1724158464963,0.55,2649.5,2649.4,2.66574468]
[1724158469223,0.55,2649.5,2649.4,21.09092743]
[1724158469906,0.58802565,2649.5,2649.4,21.09092743]
[1724158470494,3.05442565,2649.5,2649.4,21.09092743]
[1724158470811,0.58802565,2649.5,2649.4,18.42518275]
[1724158471012,4.36231565,2649.5,2649.4,18.42518275]
[1724158472082,0.58802565,2649.5,2649.4,18.42518275]
[1724158473227,0.03802565,2649.5,2649.4,24.64581275]
[1724158473538,1.599,2650.0,2649.6,3.77413]
[1724158473698,1.599,2650.0,2649.7,2.3636]
[1724158474827,5.37261,2650.0,2649.7,2.3636]
[1724158475193,0.55,2649.9,2649.7,2.3636]
[1724158475370,0.55,2649.9,2649.7,4.81990728]
[1724158478165,0.55,2649.9,2649.7,23.24509003]
[1724158480559,0.55,2649.9,2649.7,27.01897003]
[1724158484052,0.55,2649.9,2649.7,23.24509003]
[1724158485060,0.0383969,2649.8,2649.7,23.24509003]
[1724158486253,1.6373969,2649.8,2649.7,18.42518275]
[1724158486578,9.7351169,2649.8,2649.7,18.42518275]
[1724158489661,5.9612569,2649.8,2649.7,18.42518275]
[1724158490067,5.9612569,2649.8,2649.3,18.42518275]
[1724158490367,0.55,2649.7,2649.4,2.261]
[1724158490569,0.55,2649.7,2649.5,3.77424]
[1724158493181,0.55,2649.7,2649.6,3.77415]
[1724158495477,0.58815749,2649.7,2649.6,3.77415]
[1724158496042,0.58815749,2649.7,2649.6,22.19933275]
[1724158496378,0.55,2649.9,2649.6,25.02280103]
[1724158496873,0.03675665,2649.8,2649.6,25.02280103]
[1724158497749,0.03675665,2649.8,2649.7,6.19631]
[1724158498192,0.55,2650.0,2649.7,6.19631]
[1724158498695,0.03687638,2649.9,2649.7,6.19631]
[1724158501799,1.63587638,2649.9,2649.7,2.4223]
[1724158501982,1.63587638,2649.9,2649.7,20.84748275]
[1724158502303,1.63587638,2649.9,2649.7,18.42518275]
[1724158502605,0.55,2649.8,2649.7,18.42518275]
[1724158503015,0.58676751,2649.8,2649.7,18.42518275]
[1724158504411,4.36062751,2649.8,2649.7,18.42518275]
[1724158508120,4.36062751,2649.8,2649.3,22.19974275]
[1724158508304,1.599,2649.7,2649.4,3.19630428]
[1724158508503,0.55,2649.6,2649.4,3.19630428]
[1724158509789,0.55,2649.6,2649.3,22.19966275]
[1724158511727,0.58545815,2649.6,2649.3,22.19966275]
[1724158512792,0.58545815,2649.6,2649.3,18.42518275]
[1724158513726,0.58545815,2649.6,2649.1,3.77477]
[1724158513727,1.599,2649.5,2649.4,18.42518275]
[1724158513939,5.95887874,2649.5,2649.4,18.42518275]
[1724158515225,2.18458874,2649.5,2649.4,18.42518275]
[1724158516609,0.58558874,2649.5,2649.4,18.42518275]
[1724158517295,0.03558874,2649.5,2649.4,18.42518275]
[1724158517503,0.58558874,2649.5,2649.4,18.42518275]
[1724158517918,2.18458874,2649.5,2649.4,18.42518275]
[1724158524135,2.18458874,2649.5,2649.4,18.42412117]
[1724158527739,10.95076961,2649.5,2649.4,18.42412117]
[1724158528667,3.7745,2649.4,2649.1,18.42412117]
[1724158528877,0.55,2649.3,2649.2,18.42412117]
[1724158529166,2.18471355,2649.3,2649.2,18.42412117]
[1724158529970,0.58571355,2649.3,2649.2,18.42412117]
[1724158534963,0.03571355,2649.3,2649.2,22.19884117]
[1724158535153,0.03571355,2649.3,2649.2,25.05823591]
[1724158535363,1.599,2649.4,2649.2,25.05823591]
[1724158536997,1.599,2649.6,2649.3,3.77458]
[1724158537202,0.55,2649.5,2649.2,25.05822591]
[1724158537403,0.58627568,2649.5,2649.3,2.36668161]
[1724158539400,0.58627568,2649.5,2649.2,25.05822591]
[1724158540597,0.58627568,2649.5,2649.3,18.42412117]
[1724158542857,0.58627568,2649.5,2649.3,22.19867117]
[1724158544253,0.03627568,2649.5,2649.4,6.27113]
[1724158544467,5.37267,2650.0,2649.5,3.77425]
[1724158544811,0.03647916,2649.9,2649.6,22.19824117]
[1724158545015,0.03647916,2649.9,2649.7,6.05132]
[1724158545608,0.59174608,2650.2,2649.8,3.77383]
[1724158545787,3.7726,2650.7,2649.7,6.05132]
[1724158545788,3.77281,2650.6,2650.1,3.77335]
[1724158545988,1.599,2650.5,2650.2,18.42412117]
[1724158547160,0.55,2650.4,2650.2,18.42412117]
[1724158547663,1.599,2650.5,2650.2,18.42412117]
[1724158548456,1.599,2650.3,2650.2,18.42412117]
[1724158548705,5.37215,2650.3,2650.2,18.42412117]
[1724158549000,10.841424,2650.3,2650.2,18.42412117]
[1724158549601,3.77332,2650.2,2649.9,18.42412117]
[1724158549788,1.599,2650.0,2649.9,18.42412117]
[1724158552813,0.55,2650.1,2649.9,18.42412117]
[1724158553196,0.55,2650.1,2649.9,22.19783117]
[1724158553578,0.55,2650.1,2650.0,2.4358]
[1724158554179,6.25017,2650.6,2650.0,2.4358]
[1724158554411,1.599,2650.4,2650.1,22.19755117]
[1724158556016,1.599,2650.4,2650.1,25.97098117]
[1724158556211,1.599,2650.4,2650.1,22.19755117]
[1724158556538,0.55,2650.5,2650.2,3.77328]
[1724158557296,0.55,2650.5,2650.1,22.19755117]
[1724158557616,1.599,2650.4,2650.1,22.19747117]
[1724158558471,1.599,2650.4,2650.2,18.42412117]
[1724158559788,0.03705924,2650.3,2650.2,18.42412117]
[1724158563479,0.03705924,2650.3,2650.2,23.63363934]
[1724158563680,0.03705924,2650.3,2650.2,25.96353934]
[1724158563875,1.599,2650.6,2650.2,25.96353934]
[1724158563876,1.599,2650.6,2650.3,3.77313]
[1724158565767,1.599,2650.6,2650.3,3.77307]
[1724158567360,1.599,2650.6,2650.4,18.42412117]
[1724158567920,5.37174,2650.6,2650.4,18.42412117]
[1724158568339,4.32287,2650.5,2650.4,18.42412117]
[1724158568535,8.09574,2650.5,2650.4,18.42412117]
[1724158571227,4.32287,2650.5,2650.4,18.42412117]
[1724158571869,4.32287,2650.5,2650.4,18.38422117]
[1724158573270,8.09574,2650.5,2650.4,18.38422117]
[1724158573451,4.32287,2650.5,2650.4,18.38422117]
[1724158574046,8.09574,2650.5,2650.4,18.38422117]
[1724158574279,4.32287,2650.5,2650.4,18.38422117]
[1724158574434,8.09574,2650.5,2650.4,18.38422117]
[1724158574629,4.32287,2650.5,2650.4,18.38422117]
[1724158574959,4.36015371,2650.5,2650.4,18.38422117]
[1724158575470,8.13302371,2650.5,2650.4,18.38422117]
[1724158575978,4.36015371,2650.5,2650.4,18.38422117]
[1724158576272,9.33804508,2650.5,2650.4,18.38422117]
[1724158583505,8.13302371,2650.5,2650.4,18.38422117]
[1724158583646,0.03728371,2650.5,2650.4,18.38422117]
[1724158585290,0.58728371,2650.5,2650.4,18.38422117]
[1724158588009,8.13302371,2650.5,2650.4,18.38422117]
[1724158597227,3.77315,2650.3,2650.2,18.38422117]
[1724158597558,5.95806161,2650.3,2650.2,18.38422117]
[1724158604956,2.18491161,2650.3,2650.2,18.38422117]
[1724158607201,1.63491161,2650.3,2650.2,20.45071329]
[1724158608246,1.63491161,2650.3,2650.2,22.80231329]
[1724158609580,1.599,2650.3,2650.2,20.73582117]
[1724158609763,1.63500571,2650.3,2650.2,20.73582117]
[1724158612299,1.63500571,2650.3,2650.2,18.38422117]
[1724158620119,5.95815571,2650.3,2650.2,18.38422117]
[1724158622919,5.40815571,2650.3,2650.2,18.38422117]
[1724158629438,1.63500571,2650.3,2650.2,18.38422117]
[1724158637966,5.40815571,2650.3,2650.2,18.38422117]
[1724158639073,1.63500571,2650.3,2650.2,18.38422117]
[1724158640941,0.03600571,2650.3,2650.2,18.38422117]
[1724158641140,0.03600571,2650.3,2650.2,20.84208929]
[1724158641358,1.599,2650.4,2650.2,20.84208929]
[1724158641647,0.03546601,2650.3,2650.2,20.84208929]
[1724158643910,5.37189,2650.5,2650.2,20.84208929]
[1724158644061,0.03596835,2650.3,2650.2,20.84208929]
[1724158644261,5.37189,2650.5,2650.2,20.84208929]
[1724158644460,0.03593254,2650.4,2650.2,20.84208929]
[1724158644687,0.03593254,2650.4,2650.3,18.38422117]
[1724158650087,3.80894254,2650.4,2650.3,18.38422117]
[1724158668544,0.03593254,2650.4,2650.3,22.60214329]
[1724158668834,0.03593254,2650.4,2650.3,36.83215211]
[1724158669044,1.599,2651.2,2650.9,2.3795]
[1724158669389,1.599,2651.2,2650.9,6.15179]
[1724158669595,1.599,2651.2,2650.9,3.371915]
[1724158670323,1.599,2651.2,2650.9,7.144135]
[1724158670496,2.4818,2651.6,2650.4,4.56115416]
[1724158670497,1.599,2651.0,2650.7,2.4697]
[1724158673501,1.599,2651.0,2650.7,6.24227]
[1724158674839,3.7716,2651.4,2650.9,3.7723]
[1724158675159,1.599,2651.2,2650.9,3.77221]
[1724158676046,1.599,2651.0,2650.7,6.24217]
[1724158676344,1.599,2651.0,2650.7,7.24367]
[1724158678133,5.37096,2651.2,2650.7,7.24367]